bitfinex-derivatives/quotes_SOLF0:USTF0_20240912
["timestamp","ask_amount","ask_price","bid_price","bid_amount"]
[1726171255723,21.0081,135.63,135.58,6.1309]
[1726171256217,17.69,135.63,135.58,6.1309]
[1726171256423,3.3184,135.62,135.58,2.8119]
[1726171257416,17.69,135.63,135.58,2.8119]
[1726171257612,22.15,135.76,135.59,17.69]
[1726171257915,17.69,135.68,135.59,17.69]
[1726171258119,21.44276671,135.68,135.59,17.69]
[1726171258908,3.3174,135.66,135.59,17.69]
[1726171259418,17.69,135.69,135.61,17.69]
[1726171259614,3.3168,135.68,135.63,3.3179]
[1726171259815,21.322507,135.69,135.63,3.3179]
[1726171260414,3.3168,135.68,135.63,3.3179]
[1726171261211,3.3171,135.67,135.61,17.69]
[1726171261414,3.632507,135.69,135.59,19.0547]
[1726171261615,17.69,135.66,135.59,1.3647]
[1726171261817,3.3176,135.65,135.6,3.3185]
[1726171262222,21.40266317,135.66,135.59,1.3647]
[1726171262525,21.40266317,135.66,135.59,4.6835]
[1726171263024,21.40266317,135.66,135.59,1.3647]
[1726171264024,3.3175,135.65,135.6,3.3186]
[1726171268244,3.3178,135.64,135.6,3.3186]
[1726171270642,3.3175,135.65,135.61,3.3184]
[1726171272253,7.02996317,135.66,135.63,3.3179]
[1726171272552,3.65973297,135.68,135.61,17.69]
[1726171272751,3.3169,135.68,135.64,3.3176]
[1726171272947,3.3169,135.68,135.59,1.3647]
[1726171272948,17.69,135.67,135.59,19.0547]
[1726171273153,22.15,135.72,135.59,19.0547]
[1726171273355,3.3177,135.65,135.61,3.3183]
[1726171273553,7.05340849,135.65,135.61,3.3183]
[1726171274752,3.3178,135.64,135.6,3.3186]
[1726171275056,21.0078,135.64,135.6,3.3186]
[1726171279156,3.73570849,135.65,135.59,1.3647]
[1726171279452,17.69,135.66,135.59,1.3647]
[1726171279846,3.76226303,135.65,135.6,6.26463001]
[1726171280046,7.07986303,135.65,135.61,3.3183]
[1726171284553,3.3177,135.64,135.61,3.3183]
[1726171286563,7.07986303,135.65,135.61,3.3183]
[1726171288160,11.33,135.64,135.61,3.3183]
[1726171289162,11.33,135.64,135.62,3.3182]
[1726171289363,11.33,135.64,135.6,11.33]
[1726171289553,11.33,135.64,135.61,6.2644529]
[1726171289862,11.33,135.64,135.61,3.3183]
[1726171290771,3.3158,135.72,135.67,3.3168]
[1726171291060,11.33,135.71,135.66,11.33]
[1726171291264,155.40322432,135.73,135.54,14.0182]
[1726171291265,15.02218853,135.72,135.67,11.33]
[1726171291454,159.00800413,135.73,135.67,11.33]
[1726171291657,170.33800413,135.73,135.67,11.33]
[1726171291857,173.65360413,135.73,135.68,3.3166]
[1726171292165,158.71882432,135.73,135.68,3.3166]
[1726171292669,173.10322432,135.73,135.67,3.3169]
[1726171293961,3.316,135.71,135.67,3.3169]
[1726171295550,3.3159,135.72,135.67,3.3169]
[1726171296469,3.316,135.71,135.67,3.3169]
[1726171298766,3.316,135.71,135.68,3.3167]
[1726171299169,3.3159,135.72,135.68,3.3167]
[1726171300968,3.3159,135.72,135.67,17.7]
[1726171300969,17.7,135.8,135.7,17.7]
[1726171301157,17.7,135.8,135.69,2.6563]
[1726171301158,17.7,135.8,135.72,17.7]
[1726171301469,21.37101673,135.8,135.76,3.3146]
[1726171301658,3.67101673,135.8,135.73,17.7]
[1726171301855,17.7,135.82,135.73,17.7]
[1726171302071,21.32604143,135.82,135.73,17.7]
[1726171302968,24.63954143,135.82,135.78,3.3142]
[1726171303166,6.93954143,135.82,135.78,3.3142]
[1726171303379,6.93954143,135.82,135.75,17.7]
[1726171303672,6.93954143,135.82,135.78,3.3142]
[1726171303865,3.3137,135.81,135.75,17.7]
[1726171304164,3.3137,135.81,135.77,3.3145]
[1726171306464,3.3139,135.8,135.77,3.3145]
[1726171306972,3.3139,135.8,135.75,17.7]
[1726171306973,3.3139,135.8,135.76,3.3147]
[1726171307274,17.7,135.8,135.72,17.7]
[1726171307460,815.1312652,135.87,135.72,17.7]
[1726171307663,17.7,135.8,135.74,3.3152]
[1726171307865,815.1312652,135.87,135.74,3.3152]
[1726171308172,3.3144,135.78,135.74,3.3152]
[1726171308364,3.71131741,135.77,135.74,3.3152]
[1726171309664,3.3144,135.78,135.74,3.3152]
[1726171310664,3.72798939,135.78,135.7,1.3169]
[1726171310867,17.7,135.79,135.71,17.7]
[1726171311069,21.35320857,135.79,135.71,17.7]
[1726171311272,3.315,135.76,135.72,3.3157]
[1726171312359,3.3152,135.75,135.71,21.0159]
[1726171312961,3.3152,135.75,135.71,17.7]
[1726171313165,3.3149,135.76,135.72,3.3158]
[1726171313768,21.35320857,135.79,135.7,4.633]
[1726171314078,21.35320857,135.79,135.7,1.3169]
[1726171314273,3.3152,135.75,135.71,3.316]
[1726171316072,3.3153,135.74,135.71,3.316]
[1726171316462,3.3153,135.74,135.7,19.0169]
[1726171316773,3.3151,135.75,135.7,19.0169]
[1726171316970,3.3151,135.75,135.71,3.3159]
[1726171317661,3.65320857,135.79,135.7,19.0169]
[1726171317662,3.3154,135.74,135.7,22.333]
[1726171318162,7.05287051,135.74,135.7,22.333]
[1726171318575,7.05287051,135.74,135.71,3.316]
[1726171320269,3.3151,135.75,135.71,3.316]
[1726171320568,3.3151,135.75,135.7,19.0169]
[1726171320974,3.3154,135.74,135.7,22.333]
[1726171324772,21.4360947,135.78,135.7,22.333]
[1726171324979,3.3152,135.75,135.71,3.316]
[1726171326981,21.4360947,135.78,135.7,19.0169]
[1726171328067,3.3153,135.75,135.72,11.32]
[1726171330079,3.3153,135.74,135.72,11.32]
[1726171330276,3.7360947,135.78,135.71,11.32]
[1726171330277,11.32,135.76,135.71,11.32]
[1726171330677,3.3153,135.74,135.71,11.32]
[1726171332382,3.3155,135.73,135.71,11.32]
[1726171332583,3.62175707,135.75,135.71,11.32]
[1726171333179,3.3154,135.74,135.71,11.32]
[1726171336814,3.3154,135.74,135.7,4.6331]
[1726171336987,11.32,135.73,135.68,11.32]
[1726171337180,11.32,135.73,135.69,11.32]
[1726171337493,3.3157,135.73,135.69,14.6363]
[1726171337784,3.3157,135.73,135.7,11.32]
[1726171337989,3.3158,135.72,135.68,3.3166]
[1726171338189,3.3158,135.72,135.69,11.32]
[1726171340008,3.3158,135.72,135.69,14.6365]
[1726171340882,3.3157,135.73,135.7,11.32]
[1726171341779,3.3156,135.73,135.7,11.32]
[1726171344090,3.3158,135.72,135.7,11.32]
[1726171347905,3.3159,135.72,135.7,11.32]
[1726171350599,3.3156,135.73,135.7,11.32]
[1726171356793,3.3156,135.73,135.7,14.6362]
[1726171356993,3.3156,135.73,135.7,11.32]
[1726171357799,3.3156,135.73,135.71,3.316]
[1726171357996,3.3156,135.73,135.7,11.32]
[1726171358996,3.3156,135.73,135.7,14.6361]
[1726171361706,3.3153,135.74,135.7,14.6361]
[1726171362003,3.3153,135.74,135.71,14.636]
[1726171362208,3.62175707,135.75,135.71,11.32]
[1726171362506,11.32,135.76,135.71,11.32]
[1726171362915,14.91364634,135.76,135.71,11.32]
[1726171363208,14.91364634,135.76,135.71,14.6359]
[1726171363594,11.32,135.75,135.71,14.6359]
[1726171363905,3.3154,135.74,135.71,14.6359]
[1726171365901,3.3154,135.74,135.71,11.32]
[1726171366607,3.3154,135.74,135.71,14.636]
[1726171372208,3.3154,135.74,135.71,3.316]
[1726171375815,3.3154,135.74,135.67,1.3155]
[1726171375816,3.3154,135.74,135.7,11.32]
[1726171376907,3.3154,135.74,135.71,3.316]
[1726171377309,14.6352,135.75,135.7,11.32]
[1726171378114,14.6352,135.75,135.71,11.32]
[1726171378310,6.90854634,135.76,135.73,11.32]
[1726171379807,6.90854634,135.76,135.73,14.6355]
[1726171380520,3.3152,135.75,135.67,1.3155]
[1726171380709,14.6352,135.75,135.7,11.32]
[1726171381102,11.32,135.75,135.7,11.32]
[1726171381317,3.3153,135.74,135.7,11.32]
[1726171381519,14.6353,135.74,135.7,11.32]
[1726171381815,14.6353,135.74,135.7,14.6361]
[1726171382516,14.6353,135.74,135.71,14.636]
[1726171382517,7.0746117,135.74,135.71,14.636]
[1726171382703,3.3151,135.75,135.72,11.32]
[1726171382904,3.59789826,135.76,135.73,14.6354]
[1726171383111,3.59789826,135.76,135.67,1.3155]
[1726171383112,155.33324125,135.77,135.75,11.32]
[1726171383513,11.32,135.8,135.75,11.32]
[1726171383713,14.6339,135.8,135.76,11.32]
[1726171384015,22.12,135.86,135.76,11.32]
[1726171384016,11.32,135.81,135.76,11.32]
[1726171384217,3.74411147,135.8,135.77,14.6345]
[1726171384811,3.74411147,135.8,135.77,3.3145]
[1726171385729,18.37811147,135.8,135.76,3.3147]
[1726171386026,11.32,135.79,135.75,11.32]
[1726171387218,14.6343,135.79,135.75,11.32]
[1726171388023,14.6343,135.79,135.75,14.635]
[1726171392136,3.74411147,135.8,135.73,1.3467]
[1726171392338,32.41191779,135.88,135.73,1.3467]
[1726171392339,11.32,135.76,135.73,1.3467]
[1726171392730,11.32,135.76,135.73,4.6621]
[1726171393933,11.32,135.76,135.73,3.3154]
[1726171394330,11.32,135.76,135.72,2.7191]
[1726171394737,3.6344163,135.8,135.72,2.7191]
[1726171394938,22.12,135.86,135.73,11.32]
[1726171395138,11.32,135.77,135.73,11.32]
[1726171395441,15.08317931,135.77,135.73,11.32]
[1726171395738,18.39777931,135.77,135.73,14.6353]
[1726171396242,7.07777931,135.77,135.73,14.6353]
[1726171396430,18.39777931,135.77,135.73,14.6353]
[1726171396635,3.3148,135.76,135.73,14.6353]
[1726171397434,18.39777931,135.77,135.73,14.6353]
[1726171399048,3.3143,135.78,135.75,3.3149]
[1726171399347,14.6343,135.78,135.74,11.32]
[1726171399747,18.39995954,135.78,135.75,3.315]
[1726171399947,11.32,135.77,135.73,12.7079]
[1726171400152,14.6346,135.77,135.73,12.7079]
[1726171400446,3.3146,135.77,135.73,12.7079]
[1726171400646,14.6346,135.77,135.73,12.7079]
[1726171401047,14.6346,135.77,135.74,3.3152]
[1726171403152,3.3146,135.77,135.74,3.3152]
[1726171403352,14.6346,135.77,135.74,3.3152]
[1726171406054,14.635,135.76,135.72,6.0347]
[1726171406257,14.635,135.76,135.72,17.3547]
[1726171406453,3.76565954,135.78,135.72,2.7191]
[1726171406656,14.6351,135.75,135.72,6.0348]
[1726171407948,11.32,135.75,135.72,2.7191]
[1726171408854,14.6352,135.75,135.72,2.7191]
[1726171415164,11.32,135.74,135.72,2.7191]
[1726171415356,11.32,135.74,135.72,6.0347]
[1726171416949,11.32,135.75,135.72,6.0347]
[1726171419962,11.32,135.74,135.72,2.7191]
[1726171420167,11.32,135.73,135.67,11.32]
[1726171420368,11.32,135.73,135.66,2.6949]
[1726171420664,14.6357,135.73,135.69,3.3164]
[1726171421257,11.32,135.71,135.68,3.3166]
[1726171421567,25.84439204,135.78,135.62,11.32]
[1726171421568,11.32,135.69,135.62,11.32]
[1726171421877,3.3167,135.69,135.64,3.3175]
[1726171422061,11.32,135.67,135.64,3.3175]
[1726171422663,3.74502285,135.7,135.62,2.6969]
[1726171422862,3.3154,135.74,135.69,11.32]
[1726171423167,11.32,135.73,135.69,11.32]
[1726171423372,11.32,135.73,135.69,14.6364]
[1726171423760,3.72439204,135.78,135.69,3.3164]
[1726171423961,11.32,135.73,135.7,3.3163]
[1726171425974,14.6356,135.73,135.7,3.3163]
[1726171427258,14.6356,135.73,135.69,3.3164]
[1726171428173,14.6356,135.73,135.7,3.3162]
[1726171429274,14.6356,135.73,135.69,3.3164]
[1726171430076,14.6356,135.73,135.7,3.3162]
[1726171430273,11.32,135.73,135.7,3.3162]
[1726171431877,14.6355,135.73,135.7,3.3162]
[1726171432576,14.6355,135.73,135.69,3.3164]
[1726171433175,11.32,135.72,135.69,3.3164]
[1726171434179,11.32,135.72,135.7,3.3162]
[1726171434575,11.32,135.73,135.7,3.3162]
[1726171437278,3.3148,135.76,135.72,3.3157]
[1726171437478,14.6348,135.76,135.72,3.3157]
[1726171437672,158.95923039,135.79,135.72,11.32]
[1726171437874,14.6348,135.76,135.72,3.3156]
[1726171438073,11.32,135.76,135.71,11.32]
[1726171438671,11.32,135.76,135.73,3.3154]
[1726171439369,3.3147,135.77,135.72,11.32]
[1726171439580,14.6347,135.77,135.72,11.32]
[1726171439778,14.6347,135.77,135.73,3.3154]
[1726171439779,11.32,135.77,135.73,3.3154]
[1726171439981,11.32,135.77,135.72,11.32]
[1726171440371,11.32,135.77,135.74,3.3152]
[1726171440678,14.6347,135.77,135.72,11.32]
[1726171441076,14.6347,135.77,135.73,3.3154]
[1726171441972,14.6347,135.77,135.72,11.32]
[1726171442177,14.6347,135.77,135.74,3.3152]
[1726171445778,14.6347,135.77,135.73,3.3154]
[1726171445977,14.6347,135.77,135.72,11.32]
[1726171445978,11.32,135.77,135.72,11.32]
[1726171447485,11.32,135.77,135.74,3.3151]
[1726171448090,3.3144,135.78,135.75,3.315]
[1726171448282,14.6344,135.78,135.75,3.315]
[1726171451290,155.31485641,135.79,135.76,3.3147]
[1726171451500,166.63485641,135.79,135.76,3.3147]
[1726171456089,155.31485641,135.79,135.76,3.3147]
[1726171456288,169.94895641,135.79,135.76,3.3147]
[1726171458291,166.63485641,135.79,135.76,3.3147]
[1726171458588,11.32,135.8,135.75,11.32]
[1726171458793,22.12,135.86,135.75,11.32]
[1726171459090,22.12,135.87,135.78,11.32]
[1726171459290,11.32,135.83,135.78,11.32]
[1726171459492,3.7578354,135.82,135.76,1.3211]
[1726171459686,22.12,135.87,135.76,12.6411]
[1726171459889,11.32,135.81,135.76,12.6411]
[1726171460793,11.32,135.81,135.78,3.3142]
[1726171461585,11.32,135.81,135.77,3.3145]
[1726171461586,14.6336,135.81,135.77,3.3145]
[1726171462381,3.3136,135.81,135.77,3.3145]
[1726171462582,14.6336,135.81,135.77,3.3145]
[1726171465195,3.314,135.8,135.76,15.9558]
[1726171465496,11.32,135.79,135.75,1.3201]
[1726171465685,3.3142,135.79,135.75,4.635]
[1726171465890,11.32,135.76,135.74,1.4064]
[1726171466100,11.32,135.76,135.71,11.32]
[1726171466601,11.32,135.75,135.72,3.3156]
[1726171468599,3.3148,135.76,135.73,3.3155]
[1726171468600,11.32,135.76,135.73,3.3155]
[1726171470295,3.3146,135.77,135.73,14.6355]
[1726171470492,14.6346,135.77,135.73,14.6355]
[1726171471199,3.73001841,135.78,135.7,4.129]
[1726171471200,3.3148,135.76,135.72,11.32]
[1726171471399,11.32,135.76,135.72,11.32]
[1726171471597,11.32,135.76,135.73,3.3154]
[1726171472896,14.6348,135.76,135.73,3.3154]
[1726171475098,14.6347,135.77,135.73,3.3154]
[1726171475304,22.12,135.85,135.73,14.6354]
[1726171475501,22.12,135.85,135.73,3.3154]
[1726171475502,25.81786293,135.85,135.73,3.3154]
[1726171475804,11.32,135.76,135.73,3.3154]
[1726171484403,11.32,135.79,135.76,3.3148]
[1726171484804,11.32,135.79,135.75,11.32]
[1726171484805,14.6341,135.79,135.75,3.3149]
[1726171485001,3.3141,135.79,135.75,3.3149]
[1726171485209,11.32,135.76,135.72,11.32]
[1726171485407,25.81786293,135.85,135.7,4.129]
[1726171485408,3.76869795,135.78,135.7,4.129]
[1726171485614,25.81786293,135.85,135.7,4.129]
[1726171485615,11.32,135.74,135.7,4.129]
[1726171485801,11.32,135.73,135.7,4.129]
[1726171486000,11.32,135.73,135.71,3.3159]
[1726171486203,3.73406528,135.78,135.7,2.7601]
[1726171486408,11.32,135.71,135.63,1.3945]
[1726171486696,181.05774481,135.78,135.63,4.0972]
[1726171486902,11.32,135.68,135.63,15.4172]
[1726171487105,181.05774481,135.78,135.63,4.0972]
[1726171487106,11.32,135.66,135.63,4.0972]
[1726171487306,11.32,135.64,135.63,2.7027]
[1726171487503,11.32,135.64,135.61,3.3184]
[1726171487709,11.32,135.63,135.61,3.3184]
[1726171488231,11.32,135.64,135.61,3.3184]
[1726171489505,11.32,135.64,135.62,3.3182]
[1726171489912,7.09306244,135.68,135.6,11.32]
[1726171490102,3.3168,135.68,135.61,11.32]
[1726171490411,11.32,135.66,135.62,3.318]
[1726171491410,6.92594454,135.68,135.62,11.32]
[1726171491611,187.68674481,135.78,135.62,11.32]
[1726171491612,11.32,135.67,135.62,11.32]
[1726171492405,11.32,135.67,135.64,3.3176]
[1726171493311,11.32,135.67,135.63,3.3179]
[1726171494409,11.32,135.66,135.63,3.3179]
[1726171496019,11.32,135.65,135.62,3.3181]
[1726171498025,3.3172,135.66,135.62,3.3181]
[1726171498226,11.32,135.64,135.61,3.3183]
[1726171500316,3.62288916,135.68,135.56,3.3195]
[1726171500317,3.3187,135.61,135.56,3.3195]
[1726171500524,11.32,135.57,135.54,2.7494]
[1726171500828,11.32,135.55,135.54,2.7494]
[1726171501022,11.32,135.55,135.43,21.52609081]
[1726171501225,3.72197983,135.59,135.44,16.4869835]
[1726171501425,11.32,135.5,135.45,22.70025481]
[1726171501625,11.32,135.49,135.45,5.03910731]
[1726171501819,11.32,135.51,135.46,11.32]
[1726171502315,11.32,135.51,135.47,3.3217]
[1726171502524,3.675515,135.63,135.43,4.1115]
[1726171502525,11.32,135.5,135.43,4.1115]
[1726171502824,11.32,135.48,135.44,11.32]
[1726171503129,11.32,135.48,135.43,4.1115]
[1726171503130,11.32,135.48,135.45,14.6424]
[1726171503331,11.32,135.48,135.45,11.32]
[1726171503534,22.12,135.61,135.45,14.6423]
[1726171503729,11.32,135.49,135.45,11.32]
[1726171504032,11.32,135.5,135.45,11.32]
[1726171504224,17.71,135.52,135.43,21.8215]
[1726171504825,21.0307,135.52,135.46,3.3221]
[1726171506224,17.71,135.52,135.47,3.3219]
[1726171508426,17.71,135.52,135.48,3.3215]
[1726171508734,17.71,135.52,135.43,21.8215]
[1726171509337,21.0307,135.52,135.47,3.3219]
[1726171509541,17.71,135.52,135.43,21.8215]
[1726171509940,17.71,135.52,135.47,3.3217]
[1726171510236,17.71,135.52,135.43,21.8215]
[1726171511131,21.0307,135.52,135.43,4.1115]
[1726171511335,17.71,135.52,135.43,4.1115]
[1726171511829,3.73578916,135.55,135.45,3.3221]
[1726171512042,17.71,135.49,135.45,3.3221]
[1726171513637,17.71,135.49,135.43,4.1115]
[1726171513638,17.71,135.52,135.44,17.71]
[1726171514061,21.0307,135.52,135.44,17.71]
[1726171514231,17.71,135.52,135.44,17.71]
[1726171514541,17.71,135.52,135.48,3.3216]
[1726171515038,3.3206,135.53,135.45,17.71]
[1726171515240,173.32223731,135.54,135.49,3.3214]
[1726171515241,176.64253731,135.54,135.49,3.3214]
[1726171515428,176.64253731,135.54,135.45,17.71]
[1726171516234,3.3204,135.53,135.48,3.3215]
[1726171516434,173.32223731,135.54,135.45,17.71]
[1726171516932,176.64263731,135.54,135.49,3.3213]
[1726171517131,176.64263731,135.54,135.45,17.71]
[1726171517361,173.32223731,135.54,135.5,3.3211]
[1726171518037,155.61223731,135.54,135.51,3.3209]
[1726171518234,155.61223731,135.54,135.47,17.71]
[1726171518543,176.64263731,135.54,135.45,17.71]
[1726171518741,155.61223731,135.54,135.45,17.71]
[1726171519045,3.3202,135.54,135.49,3.3213]
[1726171519243,17.71,135.54,135.49,3.3213]
[1726171520027,17.71,135.54,135.5,3.3211]
[1726171520232,21.0298,135.56,135.47,17.71]
[1726171520432,17.71,135.57,135.49,17.71]
[1726171520634,17.71,135.57,135.53,3.3203]
[1726171520834,17.71,135.59,135.51,17.71]
[1726171521035,17.71,135.59,135.51,19.0587]
[1726171521245,17.71,135.61,135.53,17.71]
[1726171521545,21.41534396,135.63,135.53,17.71]
[1726171521750,21.41534396,135.63,135.58,3.3191]
[1726171521751,17.71,135.63,135.58,3.3191]
[1726171522046,17.71,135.63,135.54,17.71]
[1726171522233,17.71,135.64,135.56,17.71]
[1726171522433,17.71,135.66,135.57,2.622]
[1726171522634,17.71,135.64,135.57,2.622]
[1726171522834,17.71,135.64,135.59,3.3189]
[1726171523036,21.0278,135.64,135.59,3.3189]
[1726171524049,17.71,135.64,135.59,3.3189]
[1726171524248,17.71,135.64,135.57,2.622]
[1726171524249,17.71,135.64,135.58,3.3191]
[1726171525150,17.71,135.64,135.59,3.3189]
[1726171526647,21.0279,135.64,135.59,3.3189]
[1726171527065,17.71,135.64,135.58,3.3192]
[1726171527364,21.0278,135.64,135.57,2.622]
[1726171527571,21.0278,135.64,135.59,3.3189]
[1726171528858,3.318,135.63,135.57,2.622]
[1726171529266,21.0278,135.64,135.59,3.3189]
[1726171530354,17.71,135.64,135.6,3.3186]
[1726171531761,21.0277,135.64,135.6,3.3186]
[1726171532568,21.0277,135.64,135.61,3.3184]
[1726171532569,17.71,135.64,135.61,3.3184]
[1726171532860,17.71,135.64,135.56,17.71]
[1726171533162,21.0278,135.64,135.59,3.3188]
[1726171533363,17.71,135.64,135.56,17.71]
[1726171533871,17.71,135.66,135.58,17.71]
[1726171534071,17.71,135.68,135.6,17.71]
[1726171534563,3.3171,135.67,135.62,3.3181]
[1726171534764,17.71,135.68,135.62,3.3181]
[1726171535368,3.3174,135.66,135.62,3.3181]
[1726171536168,3.3174,135.66,135.61,3.3183]
[1726171537171,17.71,135.64,135.59,2.7532]
[1726171537771,21.0278,135.64,135.6,3.3187]
[1726171538072,21.0278,135.64,135.59,2.7532]
[1726171538073,17.71,135.64,135.59,2.7532]
[1726171538275,21.0277,135.64,135.6,3.3186]
[1726171540875,3.3177,135.64,135.61,3.3185]
[1726171541271,3.3175,135.65,135.61,3.3185]
[1726171543967,21.47595116,135.66,135.61,3.3185]
[1726171544573,3.3176,135.65,135.61,3.3185]
[1726171544768,21.47595116,135.66,135.61,3.3185]
[1726171545173,21.47595116,135.66,135.62,3.3182]
[1726171545376,17.71,135.66,135.62,3.3182]
[1726171545981,21.0274,135.66,135.63,3.3179]
[1726171546170,17.71,135.66,135.59,20.4632]
[1726171546576,3.3175,135.65,135.62,3.318]
[1726171548281,3.3175,135.65,135.61,3.3183]
[1726171549372,3.3178,135.64,135.6,3.3186]
[1726171549572,3.3178,135.64,135.59,20.4632]
[1726171549981,3.3178,135.64,135.6,3.3185]
[1726171550477,17.71,135.64,135.59,2.7532]
[1726171550680,17.71,135.64,135.58,3.319]
[1726171551082,3.3183,135.62,135.58,3.319]
[1726171551386,3.3183,135.62,135.54,2.7065]
[1726171551387,17.71,135.62,135.54,20.4165]
[1726171551571,17.71,135.61,135.54,2.7065]
[1726171551773,17.71,135.61,135.55,3.3198]
[1726171552383,3.3189,135.6,135.55,3.3198]
[1726171552776,3.3189,135.6,135.56,3.3196]
[1726171553279,3.3189,135.6,135.54,2.7065]
[1726171553280,3.3189,135.6,135.55,3.3198]
[1726171553670,6.94858439,135.59,135.55,3.3198]
[1726171554782,6.94858439,135.59,135.54,6.0266]
[1726171554974,24.65858439,135.59,135.54,3.3201]
[1726171555284,24.65858439,135.59,135.52,1.4076]
[1726171555482,21.0291,135.59,135.55,3.3198]
[1726171556183,24.70872812,135.59,135.55,3.3198]
[1726171557183,17.71,135.59,135.52,1.4076]
[1726171557377,17.71,135.62,135.57,3.3193]
[1726171557974,17.71,135.62,135.53,20.4463]
[1726171558282,3.3186,135.61,135.53,20.4463]
[1726171558482,17.71,135.62,135.53,20.4463]
[1726171558994,3.319,135.59,135.55,3.3199]
[1726171559785,17.71,135.6,135.56,3.3195]
[1726171559974,17.71,135.6,135.53,20.4463]
[1726171560773,21.0287,135.6,135.53,20.4463]
[1726171561180,17.71,135.6,135.53,20.4463]
[1726171561581,17.71,135.62,135.53,20.4463]
[1726171562088,3.3186,135.61,135.53,20.4463]
[1726171563086,3.3186,135.61,135.57,3.3194]
[1726171564087,11.34,135.59,135.57,3.3194]
[1726171573790,11.34,135.59,135.55,11.34]
[1726171574806,11.34,135.59,135.57,3.3193]
[1726171578991,14.659,135.59,135.54,11.34]
[1726171579191,3.67520106,135.58,135.53,2.7363]
[1726171579395,11.34,135.55,135.53,2.7363]
[1726171580088,11.34,135.55,135.54,3.32]
[1726171580490,155.49339014,135.64,135.53,2.7363]
[1726171580687,11.34,135.57,135.55,3.3199]
[1726171581905,11.34,135.57,135.53,2.7363]
[1726171582097,11.34,135.59,135.54,11.34]
[1726171582298,11.34,135.59,135.53,2.7363]
[1726171582299,155.49339014,135.64,135.55,11.34]
[1726171582496,11.34,135.6,135.55,11.34]
[1726171582796,11.34,135.59,135.54,11.34]
[1726171583097,11.34,135.58,135.56,3.3196]
[1726171583287,11.34,135.58,135.53,14.0763]
[1726171585998,11.34,135.58,135.56,3.3196]
[1726171586700,11.34,135.59,135.54,11.34]
[1726171588090,3.318,135.63,135.58,3.3192]
[1726171588290,11.34,135.6,135.58,3.3192]
[1726171588689,3.74234486,135.61,135.59,3.3189]
[1726171588896,11.34,135.62,135.59,3.3189]
[1726171589196,11.34,135.62,135.57,11.34]
[1726171590086,11.34,135.63,135.57,11.34]
[1726171590297,11.34,135.63,135.59,3.3188]
[1726171590601,11.34,135.62,135.59,3.3188]
[1726171594498,11.34,135.6,135.56,11.34]
[1726171594693,11.34,135.58,135.53,14.0763]
[1726171595207,11.34,135.58,135.54,6.22495134]
[1726171595505,11.34,135.58,135.53,14.0763]
[1726171595703,11.34,135.58,135.56,3.3196]
[1726171595906,3.77066324,135.6,135.54,11.34]
[1726171596093,11.34,135.6,135.57,3.3193]
[1726171596707,15.00396163,135.6,135.57,3.3193]
[1726171598800,11.34,135.6,135.57,3.3193]